fUST/lending_fUST_20250816
["ID","MTS","AMOUNT","RATE_DAILY","PERIOD"]
[379635452,1755351831657,-263.2302143,0.00021917,3]
[379635453,1755351831686,-480.0,0.00021917,3]
[379635454,1755351831714,-559.12752813,0.00021917,3]
[379635455,1755351831742,-480.0,0.00021917,3]
[379635456,1755351831771,-480.0,0.00021917,3]
[379635457,1755351831799,-13.31088462,0.00021917,3]
[379635458,1755351831961,-448.6627459,0.00021917,3]
[379635459,1755351831990,-257.59135799,0.00021917,3]
[379635460,1755351832019,-1305.10179222,0.00021917,3]
[379635461,1755351832067,-977.28820778,0.00021917,3]
[379635462,1755351832097,-480.0,0.00021917,3]
[379635463,1755351832125,-480.0,0.00021917,3]
[379635464,1755351832153,-480.0,0.00021917,3]
[379635465,1755351832356,-1180.36,0.00021917,3]
[379635466,1755351832385,-480.0,0.00021917,3]
[379635467,1755351832412,-460.0,0.00021917,3]
[379635468,1755351832440,-198.84,0.00021917,3]
[379635469,1755351832512,-361.6,0.00021917,3]
[379635470,1755351832544,-480.0,0.00021917,3]
[379635471,1755351832575,-480.0,0.00021917,3]
[379635472,1755351832603,-365.75219338,0.00021917,3]
[379635473,1755351832632,-480.0,0.00021917,3]
[379635474,1755351832794,-716.33,0.00021917,3]
[379635475,1755351832823,-480.0,0.00021917,3]
[379635476,1755351832857,-480.0,0.00021917,3]
[379635477,1755351832895,-480.0,0.00021917,3]
[379635478,1755351832925,-207.34,0.00021917,3]
[379635479,1755351833215,-272.66,0.00021917,3]
[379635480,1755351833245,-421.88038227,0.00021917,3]
[379635481,1755351833274,-988.36,0.00021917,3]
[379635482,1755351833304,-480.0,0.00021917,3]
[379635483,1755351833550,-727.72,0.00021917,3]
[379635484,1755351833578,-480.0,0.00021917,3]
[379635485,1755351833606,-505.36,0.00021917,3]
[379635486,1755351833636,-480.0,0.00021917,3]
[379635487,1755351833665,-133.84,0.00021917,3]
[379635488,1755351833879,-346.16,0.00021917,3]
[379635489,1755351833909,-480.0,0.00021917,3]
[379635490,1755351833939,-480.0,0.00021917,3]
[379635491,1755351833969,-480.0,0.00021917,3]
[379635492,1755351834000,-480.0,0.00021917,3]
[379635493,1755351834124,-480.0,0.00021917,3]
[379635494,1755351834155,-480.0,0.00021917,3]
[379635495,1755351834184,-598.73,0.00021917,3]
[379635496,1755351834214,-480.0,0.00021917,3]
[379635497,1755351834243,-442.54,0.00021917,3]
[379635498,1755351834402,-37.46,0.00021917,3]
[379635499,1755351834431,-480.0,0.00021917,3]
[379635500,1755351834460,-724.07,0.00021917,3]
[379635501,1755351834488,-480.0,0.00021917,3]
[379635502,1755351834516,-480.0,0.00021917,3]
[379635503,1755351834545,-116.94,0.00021917,3]
[379635504,1755351834710,-363.06,0.00021917,3]
[379635505,1755351834738,-460.0,0.00021917,3]
[379635506,1755351834766,-480.0,0.00021917,3]
[379635507,1755351834793,-532.11,0.00021917,3]
[379635508,1755351834820,-480.0,0.00021917,3]
[379635509,1755351835021,-480.0,0.00021917,3]
[379635510,1755351835050,-480.0,0.00021917,3]
[379635511,1755351835081,-480.0,0.00021917,3]
[379635512,1755351835112,-460.0,0.00021917,3]
[379635513,1755351835141,-480.0,0.00021917,3]
[379635514,1755351835185,-480.0,0.00021917,3]
[379635515,1755351835215,-480.0,0.00021917,3]
[379635516,1755351835245,-480.0,0.00021917,3]
[379635517,1755351835274,-480.0,0.00021917,3]
[379635518,1755351835304,-480.0,0.00021917,3]
[379635519,1755351835649,-1678.85,0.00021917,3]
[379635520,1755351835679,-480.0,0.00021917,3]
[379635521,1755351835708,-154.43,0.00021917,3]
[379635522,1755351835746,-373.44,0.00021917,3]
[379635523,1755351835776,-523.34,0.00021917,3]
[379635524,1755351835804,-480.0,0.00021917,3]
[379635525,1755351835836,-977.4,0.00021917,3]
[379635526,1755351836023,-460.0,0.00021917,3]
[379635527,1755351836052,-1131.16,0.00021917,3]
[379635528,1755351836081,-480.0,0.00021917,3]
[379635529,1755351836108,-377.68,0.00021917,3]
[379635530,1755351836263,-102.32,0.00021917,3]
[379635531,1755351836290,-480.0,0.00021917,3]
[379635532,1755351836316,-480.0,0.00021917,3]
[379635533,1755351836342,-480.0,0.00021917,3]
[379635534,1755351836370,-480.0,0.00021917,3]
[379635535,1755351836396,-475.36,0.00021917,3]
[379635536,1755351836787,-4.64,0.00021917,3]
[379635537,1755351836814,-480.0,0.00021917,3]
[379635538,1755351836846,-480.0,0.00021917,3]
[379635539,1755351836875,-1000.69,0.00021917,3]
[379635540,1755351836903,-480.0,0.00021917,3]
[379635541,1755351837045,-480.0,0.00021917,3]
[379635542,1755351837073,-480.0,0.00021917,3]
[379635543,1755351837102,-480.0,0.00021917,3]
[379635544,1755351837130,-480.0,0.00021917,3]
[379635545,1755351837159,-480.0,0.00021917,3]
[379635546,1755351837346,-460.0,0.00021917,3]
[379635547,1755351837374,-480.0,0.00021917,3]
[379635548,1755351837401,-824.41,0.00021917,3]
[379635549,1755351837429,-480.0,0.00021917,3]
[379635550,1755351837457,-66.22134896,0.00021917,3]
[379635551,1755351837715,-378.73730208,0.00021917,3]
[379635552,1755351837744,-480.0,0.00021917,3]
[379635553,1755351837772,-480.0,0.00021917,3]
[379635554,1755351837800,-480.0,0.00021917,3]
[379635555,1755351837831,-480.0,0.00021917,3]
[379635556,1755351838063,-480.0,0.00021917,3]
[379635557,1755351838092,-446.56388493,0.00021917,3]
[379635558,1755351838120,-480.0,0.00021917,3]
[379635559,1755351838148,-480.0,0.00021917,3]
[379635560,1755351838176,-461.54439111,0.00021917,3]
[379635561,1755351838214,-460.62082489,0.00021917,3]
[379635562,1755351838243,-480.0,0.00021917,3]
[379635563,1755351838271,-480.0,0.00021917,3]
[379635564,1755351838298,-480.0,0.00021917,3]
[379635565,1755351838328,-461.48483732,0.00021917,3]
[379635566,1755351838525,-500.0,0.00021917,3]
[379635567,1755351838555,-500.0,0.00021917,3]
[379635568,1755351838586,-620.85,0.00021917,3]
[379635569,1755351838615,-480.0,0.00021917,3]
[379635570,1755351838642,-349.00680071,0.00021917,3]
[379635571,1755351838763,-460.72218901,0.00021917,3]
[379635572,1755351838791,-480.0,0.00021917,3]
[379635573,1755351838820,-480.0,0.00021917,3]
[379635574,1755351838850,-460.0,0.00021917,3]
[379635575,1755351838878,-480.0,0.00021917,3]
[379635576,1755351839013,-460.0,0.00021917,3]
[379635577,1755351839042,-480.0,0.00021917,3]
[379635578,1755351839070,-480.0,0.00021917,3]
[379635579,1755351839103,-480.0,0.00021917,3]
[379635580,1755351839294,-1576.96,0.00021917,3]
[379635581,1755351839340,-1846.08,0.00021917,3]
[379635582,1755351839369,-480.0,0.00021917,3]
[379635583,1755351839548,-480.0,0.00021917,3]
[379635584,1755351839576,-480.0,0.00021917,3]
[379635585,1755351839606,-813.49,0.00021917,3]
[379635586,1755351839635,-462.07358749,0.00021917,3]
[379635587,1755351839663,-48.87282502,0.00021917,3]
[379635588,1755351839907,-431.12717498,0.00021917,3]
[379635589,1755351839935,-480.0,0.00021917,3]
[379635590,1755351839963,-480.0,0.00021917,3]
[379635591,1755351839991,-480.0,0.00021917,3]
[379635592,1755351840020,-440.0,0.00021917,3]
[379635593,1755351840172,-423.40433545,0.00021917,3]
[379635594,1755351840204,-480.0,0.00021917,3]
[379635595,1755351840235,-480.0,0.00021917,3]
[379635596,1755351840268,-480.0,0.00021917,3]
[379635597,1755351840297,-480.0,0.00021917,3]
[379635598,1755351840635,-480.0,0.00021917,3]
[379635599,1755351840663,-480.0,0.00021917,3]
[379635600,1755351840697,-480.0,0.00021917,3]
[379635601,1755351840728,-480.0,0.00021917,3]
[379635602,1755351840758,-462.45099491,0.00021917,3]
[379635603,1755351840895,-480.0,0.00021917,3]
[379635604,1755351840926,-480.0,0.00021917,3]
[379635605,1755351840956,-1263.52,0.00021917,3]
[379635606,1755351840985,-91.30392902,0.00021917,3]
[379635607,1755351841179,-370.35214196,0.00021917,3]
[379635608,1755351841207,-731.75,0.00021917,3]
[379635609,1755351841235,-480.0,0.00021917,3]
[379635610,1755351841263,-480.0,0.00021917,3]
[379635611,1755351841293,-410.72586202,0.00021917,3]
[379635612,1755351841463,-54.34399204,0.00021917,3]
[379635613,1755351841492,-480.0,0.00021917,3]
[379635614,1755351841520,-480.0,0.00021917,3]
[379635615,1755351841550,-971.33,0.00021917,3]
[379635616,1755351841578,-480.0,0.00021917,3]
[379635617,1755351841782,-480.0,0.00021917,3]
[379635618,1755351841811,-480.0,0.00021917,3]
[379635619,1755351841845,-480.0,0.00021917,3]
[379635620,1755351842012,-480.0,0.00021917,3]
[379635621,1755351842043,-480.0,0.00021917,3]
[379635622,1755351842246,-480.0,0.00021917,3]
[379635623,1755351842275,-460.0,0.00021917,3]
[379635624,1755351842303,-480.0,0.00021917,3]
[379635625,1755351842332,-480.0,0.00021917,3]
[379635626,1755351842361,-480.0,0.00021917,3]
[379635627,1755351842551,-480.0,0.00021917,3]
[379635628,1755351842579,-460.0,0.00021917,3]
[379635629,1755351842609,-480.0,0.00021917,3]
[379635630,1755351842637,-480.0,0.00021917,3]
[379635631,1755351842666,-480.0,0.00021917,3]
[379635632,1755351842848,-480.0,0.00021917,3]
[379635633,1755351842878,-500.0,0.00021917,3]
[379635634,1755351842907,-500.0,0.00021917,3]
[379635635,1755351842938,-500.0,0.00021917,3]
[379635636,1755351842966,-500.0,0.00021917,3]
[379635637,1755351843028,-500.0,0.00021917,3]
[379635638,1755351843058,-500.0,0.00021917,3]
[379635639,1755351843088,-500.0,0.00021917,3]
[379635640,1755351843118,-500.0,0.00021917,3]
[379635641,1755351843149,-500.0,0.00021917,3]
[379635642,1755351843300,-422.25673229,0.00021917,3]
[379635643,1755351843333,-480.0,0.00021917,3]
[379635644,1755351843364,-1127.65,0.00021917,3]
[379635645,1755351843394,-460.18653542,0.00021917,3]
[379635646,1755351843510,-19.81346458,0.00021917,3]
[379635647,1755351843541,-480.0,0.00021917,3]
[379635648,1755351843572,-480.0,0.00021917,3]
[379635649,1755351843603,-877.59,0.00021917,3]
[379635650,1755351843632,-460.0,0.00021917,3]
[379635651,1755351843725,-480.0,0.00021917,3]
[379635652,1755351843755,-480.0,0.00021917,3]
[379635653,1755351843785,-460.0,0.00021917,3]
[379635654,1755351843815,-480.0,0.00021917,3]
[379635655,1755351843857,-480.0,0.00021917,3]
[379635656,1755351844019,-562.29578521,0.00021917,3]
[379635657,1755351844050,-480.0,0.00021917,3]
[379635658,1755351844080,-480.0,0.00021917,3]
[379635659,1755351844109,-480.0,0.00021917,3]
[379635660,1755351844138,-480.0,0.00021917,3]
[379635661,1755351844459,-480.0,0.00021917,3]
[379635662,1755351844488,-481.71,0.00021917,3]
[379635663,1755351844517,-480.0,0.00021917,3]
[379635664,1755351844546,-480.0,0.00021917,3]
[379635665,1755351844574,-480.0,0.00021917,3]
[379635666,1755351844685,-480.0,0.00021917,3]
[379635667,1755351844715,-480.0,0.00021917,3]
[379635668,1755351844744,-480.0,0.00021917,3]
[379635669,1755351844772,-480.0,0.00021917,3]
[379635670,1755351844801,-480.0,0.00021917,3]
[379635671,1755351845001,-480.0,0.00021917,3]
[379635672,1755351845031,-480.0,0.00021917,3]
[379635673,1755351845061,-480.0,0.00021917,3]
[379635674,1755351845091,-480.0,0.00021917,3]
[379635675,1755351845121,-480.0,0.00021917,3]
[379635676,1755351845284,-480.0,0.00021917,3]
[379635677,1755351845314,-480.0,0.00021917,3]
[379635678,1755351845344,-1455.49,0.00021917,3]
[379635679,1755351845484,-517.09,0.00021917,3]
[379635680,1755351845515,-480.0,0.00021917,3]
[379635681,1755351845546,-480.0,0.00021917,3]
[379635682,1755351845576,-480.0,0.00021917,3]
[379635683,1755351846216,-300.0,0.00021916,2]
[379635684,1755351847142,-316.9,0.00021917,3]
[379635685,1755351847168,-35.40842958,0.00021917,3]
[379635686,1755351847211,-480.0,0.00021917,3]
[379635687,1755351847225,-481.71,0.00021917,3]
[379635688,1755351847240,-480.0,0.00021917,3]
[379635689,1755351847259,-480.0,0.00021917,3]
[379635690,1755351847289,-480.0,0.00021917,3]
[379635691,1755351847304,-196.58,0.00021917,3]
[379635692,1755351847319,-480.0,0.00021917,3]
[379635693,1755351847335,-480.0,0.00021917,3]
[379635694,1755351847353,-480.0,0.00021917,3]
[379635695,1755351847368,-480.0,0.00021917,3]
[379635696,1755351847401,-648.17842958,0.00021917,3]
[379635697,1755351847444,-31.82157042,0.00021917,3]
[379635698,1755351847482,-1328.17842958,0.00021917,3]
[379635699,1755351847549,-111.82157042,0.00021917,3]
[379635700,1755351847570,-480.0,0.00021917,3]
[379635701,1755351847586,-480.0,0.00021917,3]
[379635702,1755351847601,-200.0,0.00021917,3]
[379635703,1755351847636,-1071.82157042,0.00021917,3]
[379635704,1755351847665,-1005.03,0.00021917,3]
[379635705,1755351847696,-366.29685916,0.00021917,3]
[379635706,1755351847773,-113.70314084,0.00021917,3]
[379635707,1755351847804,-480.0,0.00021917,3]
[379635708,1755351847836,-744.49,0.00021917,3]
[379635709,1755351847871,-480.0,0.00021917,3]
[379635710,1755351847906,-480.0,0.00021917,3]
[379635711,1755351848074,-480.0,0.00021917,3]
[379635712,1755351848104,-480.0,0.00021917,3]
[379635713,1755351848136,-500.0,0.00021917,3]
[379635714,1755351848167,-519.65632826,0.00021917,3]
[379635715,1755351848198,-480.0,0.00021917,3]
[379635716,1755351848317,-460.0,0.00021917,3]
[379635717,1755351848327,-460.44707013,0.00021917,3]
[379635718,1755351848337,-480.0,0.00021917,3]
[379635719,1755351848347,-625.3144719,0.00021917,3]
[379635720,1755351848356,-480.0,0.00021917,3]
[379635721,1755351848365,-480.0,0.00021917,3]
[379635722,1755351848374,-468.31898887,0.00021917,3]
[379635723,1755351848501,-11.68101113,0.00021917,3]
[379635724,1755351848532,-480.0,0.00021917,3]
[379635725,1755351848563,-480.0,0.00021917,3]
[379635726,1755351848594,-449.51717456,0.00021917,3]
[379635727,1755351848624,-480.0,0.00021917,3]
[379635728,1755351848655,-480.0,0.00021917,3]
[379635729,1755351848753,-480.0,0.00021917,3]
[379635730,1755351848763,-480.0,0.00021917,3]
[379635731,1755351848772,-480.0,0.00021917,3]
[379635732,1755351848781,-480.0,0.00021917,3]
[379635733,1755351848791,-157.51942593,0.00021917,3]
[379635734,1755351848801,-541.28238838,0.00021917,3]
[379635735,1755351848817,-69.20890331,0.00021917,3]
[379635736,1755351848830,-480.0,0.00021917,3]
[379635737,1755351848839,-480.0,0.00021917,3]
[379635738,1755351848849,-480.0,0.00021917,3]
[379635739,1755351848858,-480.0,0.00021917,3]
[379635740,1755351848868,-480.0,0.00021917,3]
[379635741,1755351848877,-480.0,0.00021917,3]
[379635742,1755351848886,-480.0,0.00021917,3]
[379635743,1755351848896,-480.0,0.00021917,3]
[379635744,1755351848906,-460.0,0.00021917,3]
[379635745,1755351848916,-480.0,0.00021917,3]
[379635746,1755351848926,-150.79109669,0.00021917,3]
[379635747,1755351848960,-186.64463543,0.00021917,3]
[379635748,1755351848991,-480.0,0.00021917,3]
[379635749,1755351849020,-480.0,0.00021917,3]
[379635750,1755351849051,-480.0,0.00021917,3]
[379635751,1755351849080,-480.0,0.00021917,3]
[379635752,1755351849110,-306.71072914,0.00021917,3]
[379635753,1755351849172,-173.28927086,0.00021917,3]
[379635754,1755351849183,-611.81,0.00021917,3]
[379635755,1755351849193,-462.50897464,0.00021917,3]
[379635756,1755351849203,-825.94,0.00021917,3]
[379635757,1755351849213,-480.0,0.00021917,3]
[379635758,1755351849222,-33.09638993,0.00021917,3]
[379635759,1755351849240,-300.0,0.00021917,3]
[379635760,1755351849262,-146.90361007,0.00021917,3]
[379635761,1755351849271,-480.0,0.00021917,3]
[379635762,1755351849280,-480.0,0.00021917,3]
[379635763,1755351849290,-480.0,0.00021917,3]
[379635764,1755351849299,-500.0,0.00021917,3]
[379635765,1755351849308,-567.2,0.00021917,3]
[379635766,1755351849318,-541.12,0.00021917,3]
[379635767,1755351849328,-522.66,0.00021917,3]
[379635768,1755351849337,-480.0,0.00021917,3]
[379635769,1755351849347,-202.11638993,0.00021917,3]
[379635770,1755351849382,-816.23361007,0.00021917,3]
[379635771,1755351849415,-1018.35,0.00021917,3]
[379635772,1755351849446,-312.48277986,0.00021917,3]
[379635773,1755351849487,-705.86722014,0.00021917,3]
[379635774,1755351849496,-1018.35,0.00021917,3]
[379635775,1755351849506,-1018.35,0.00021917,3]
[379635776,1755351849515,-110.36638993,0.00021917,3]
[379635777,1755351849531,-907.98361007,0.00021917,3]
[379635778,1755351849540,-1018.35,0.00021917,3]
[379635779,1755351849549,-1018.35,0.00021917,3]
[379635780,1755351849558,-480.0,0.00021917,3]
[379635781,1755351849567,-1018.35,0.00021917,3]
[379635782,1755351849577,-480.0,0.00021917,3]
[379635783,1755351849586,-76.96638993,0.00021917,3]
[379635784,1755351849620,-941.38361007,0.00021917,3]
[379635785,1755351849649,-480.0,0.00021917,3]
[379635786,1755351849681,-1018.35,0.00021917,3]
[379635787,1755351849724,-1018.35,0.00021917,3]
[379635788,1755351849753,-480.0,0.00021917,3]
[379635789,1755351849784,-984.95,0.00021917,3]
[379635790,1755351849821,-33.4,0.00021917,3]
[379635791,1755351849855,-480.0,0.00021917,3]
[379635792,1755351850040,-1018.35,0.00021917,3]
[379635793,1755351850071,-918.15,0.00021917,3]
[379635794,1755351850185,-100.2,0.00021917,3]
[379635795,1755351850196,-480.0,0.00021917,3]
[379635796,1755351850207,-1018.35,0.00021917,3]
[379635797,1755351850216,-1018.35,0.00021917,3]
[379635798,1755351850225,-10.16638993,0.00021917,3]
[379635799,1755351850261,-1223.16361007,0.00021917,3]
[379635800,1755351850292,-1018.35,0.00021917,3]
[379635801,1755351850322,-36.97277986,0.00021917,3]
[379635802,1755351850362,-443.02722014,0.00021917,3]
[379635803,1755351850371,-928.09,0.00021917,3]
[379635804,1755351850381,-1018.35,0.00021917,3]
[379635805,1755351850390,-332.04638993,0.00021917,3]
[379635806,1755351850406,-127.95361007,0.00021917,3]
[379635807,1755351850415,-1018.35,0.00021917,3]
[379635808,1755351850424,-1018.35,0.00021917,3]
[379635809,1755351850435,-1018.35,0.00021917,3]
[379635810,1755351850444,-1018.35,0.00021917,3]
[379635811,1755351850453,-798.64638993,0.00021917,3]
[379635812,1755351850477,-219.7566706,0.00021917,3]
[379635813,1755351850486,-209.86390289,0.00021917,3]
[379635814,1755351850495,-264.96501802,0.00021917,3]
[379635815,1755351850505,-480.0,0.00021917,3]
[379635816,1755351850513,-480.0,0.00021917,3]
[379635817,1755351850523,-480.0,0.00021917,3]
[379635818,1755351850532,-480.0,0.00021917,3]
[379635819,1755351850541,-480.0,0.00021917,3]
[379635820,1755351850551,-480.0,0.00021917,3]
[379635821,1755351850560,-480.0,0.00021917,3]
[379635822,1755351850569,-297.23597891,0.00021917,3]
[379635823,1755351850604,-349.63402109,0.00021917,3]
[379635824,1755351850633,-480.0,0.00021917,3]
[379635825,1755351850665,-480.0,0.00021917,3]
[379635826,1755351850696,-480.0,0.00021917,3]
[379635827,1755351850734,-529.18998637,0.00021917,3]
[379635828,1755351850822,-514.16,0.00021917,3]
[379635829,1755351850836,-480.0,0.00021917,3]
[379635830,1755351850846,-358.83756296,0.00021917,3]
[379635831,1755351850879,-121.16243704,0.00021917,3]
[379635832,1755351850911,-480.0,0.00021917,3]
[379635833,1755351850942,-480.0,0.00021917,3]
[379635834,1755351850973,-440.0,0.00021917,3]
[379635835,1755351851004,-460.0,0.00021917,3]
[379635836,1755351851034,-480.0,0.00021917,3]
[379635837,1755351851130,-105.03,0.00021917,3]
[379635838,1755351851145,-113.70314084,0.00021917,3]
[379635839,1755351851160,-261.26685916,0.00021917,3]
[379635840,1755351851169,-218.73314084,0.00021917,3]
[379635841,1755351851233,-744.49,0.00021917,3]
[379635842,1755351851289,-480.0,0.00021917,3]
[379635843,1755351851328,-1266.12685916,0.00021917,3]
[379635844,1755351851357,-460.0,0.00021917,3]
[379635845,1755351851387,-484.62791374,0.00021917,3]
[379635846,1755351851416,-118.4904542,0.00021917,3]
[379635847,1755351851528,-341.5095458,0.00021917,3]
[379635848,1755351851556,-480.0,0.00021917,3]
[379635849,1755351851585,-480.0,0.00021917,3]
[379635850,1755351851614,-534.39828271,0.00021917,3]
[379635851,1755351851643,-480.0,0.00021917,3]
[379635852,1755351851794,-462.1417622,0.00021917,3]
[379635853,1755351851824,-480.0,0.00021917,3]
[379635854,1755351851856,-480.0,0.00021917,3]
[379635855,1755351851887,-480.0,0.00021917,3]
[379635856,1755351851919,-480.0,0.00021917,3]
[379635857,1755351852058,-251.59,0.00021917,3]
[379635858,1755351852138,-503.18,0.00021917,3]
[379635859,1755351852244,-480.0,0.00021917,3]
[379635860,1755351852260,-480.0,0.00021917,3]
[379635861,1755351852295,-1966.36,0.00021917,3]
[379635862,1755351852346,-1067.28,0.00021917,3]
[379635863,1755351852376,-480.0,0.00021917,3]
[379635864,1755351852406,-460.0,0.00021917,3]
[379635865,1755351852436,-480.0,0.00021917,3]
[379635866,1755351852606,-480.0,0.00021917,3]
[379635867,1755351852615,-407.95722014,0.00021917,3]
[379635868,1755351852649,-72.04277986,0.00021917,3]
[379635869,1755351852678,-480.0,0.00021917,3]
[379635870,1755351852710,-461.38223423,0.00021917,3]
[379635871,1755351852740,-480.0,0.00021917,3]
[379635872,1755351852770,-480.0,0.00021917,3]
[379635873,1755351852800,-480.0,0.00021917,3]
[379635874,1755351852938,-183.80776577,0.00021917,2]
[379635875,1755351852957,-33.4,0.00021917,2]
[379635876,1755351852972,-262.79223423,0.00021917,2]
[379635877,1755351852981,-217.20776577,0.00021917,3]
[379635878,1755351853013,-242.79223423,0.00021917,3]
[379635879,1755351853043,-497.73,0.00021917,3]
[379635880,1755351853073,-307.86371295,0.00021917,3]
[379635881,1755351853101,-483.71013519,0.00021917,2]
[379635882,1755351853130,-480.0,0.00021917,3]
[379635883,1755351853159,-480.0,0.00021917,3]
[379635884,1755351853414,-480.0,0.00021917,3]
[379635885,1755351853458,-317.80347488,0.00021917,3]
[379635886,1755351853473,-1018.35,0.00021917,3]
[379635887,1755351853487,-480.0,0.00021917,3]
[379635888,1755351853514,-349.63402109,0.00021917,3]
[379635889,1755351853540,-480.0,0.00021917,3]
[379635890,1755351853555,-480.0,0.00021917,3]
[379635891,1755351853569,-480.0,0.00021917,3]
[379635892,1755351853585,-529.18998637,0.00021917,3]
[379635893,1755351853600,-362.35198508,0.00021917,3]
[379635894,1755351853626,-121.16243704,0.00021917,3]
[379635895,1755351853641,-480.0,0.00021917,3]
[379635896,1755351853656,-480.0,0.00021917,3]
[379635897,1755351853671,-440.0,0.00021917,3]
[379635898,1755351853706,-460.0,0.00021917,3]
[379635899,1755351853721,-480.0,0.00021917,3]
[379635900,1755351853736,-77.67512592,0.00021917,3]
[379635901,1755351853870,-1266.12685916,0.00021917,3]
[379635902,1755351853886,-460.0,0.00021917,3]
[379635903,1755351853902,-484.62791374,0.00021917,3]
[379635904,1755351853917,-460.0,0.00021917,3]
[379635905,1755351853951,-2002.36180328,0.00021917,3]
[379635906,1755351854051,-313.54602523,0.00021917,3]
[379635907,1755351854066,-368.18434298,0.00021917,3]
[379635908,1755351854100,-313.54602523,0.00021917,3]
[379635909,1755351854130,-480.0,0.00021917,3]
[379635910,1755351854161,-480.0,0.00021917,3]
[379635911,1755351854190,-480.0,0.00021917,3]
[379635912,1755351854278,-148.59573697,0.00021917,3]
[379635913,1755351854311,-1842.39426303,0.00021917,3]
[379635914,1755351854340,-640.26,0.00021917,3]
[379635915,1755351854424,-480.0,0.00021917,3]
[379635916,1755351854434,-480.0,0.00021917,3]
[379635917,1755351854444,-1096.36,0.00021917,3]
[379635918,1755351854455,-480.0,0.00021917,3]
[379635919,1755351854465,-445.11221257,0.00021917,3]
[379635920,1755351854501,-34.88778743,0.00021917,3]
[379635921,1755351854533,-480.0,0.00021917,3]
[379635922,1755351854564,-480.0,0.00021917,3]
[379635923,1755351854594,-480.0,0.00021917,3]
[379635924,1755351854652,-2446.38,0.00021917,3]
[379635925,1755351854662,-575.55221257,0.00021917,3]
[379635926,1755351854682,-846.65778743,0.00021917,3]
[379635927,1755351854692,-480.0,0.00021917,3]
[379635928,1755351854702,-886.65,0.00021917,3]
[379635929,1755351854712,-820.33221257,0.00021917,3]
[379635930,1755351854748,-554.04778743,0.00021917,3]
[379635931,1755351854778,-585.33,0.00021917,3]
[379635932,1755351854808,-1186.54,0.00021917,3]
[379635933,1755351854915,-161.36221257,0.00021917,3]
[379635934,1755351854930,-25.44,0.00021917,3]
[379635935,1755351854968,-293.19778743,0.00021917,3]
[379635936,1755351854998,-480.0,0.00021917,3]
[379635937,1755351855029,-480.0,0.00021917,3]
[379635938,1755351855172,-258.84499243,0.00021917,3]
[379635939,1755351855196,-480.0,0.00021917,3]
[379635940,1755351855216,-480.0,0.00021917,3]
[379635941,1755351855244,-93.14997182,0.00021917,3]
[379635942,1755351855275,-242.79223423,0.00021917,3]
[379635943,1755351855290,-497.73,0.00021917,3]
[379635944,1755351855306,-307.86371295,0.00021917,3]
[379635945,1755351855321,-483.71013519,0.00021917,3]
[379635946,1755351855336,-480.0,0.00021917,3]
[379635947,1755351855351,-480.0,0.00021917,3]
[379635948,1755351855367,-15.80783526,0.00021917,3]
[379635949,1755351855402,-480.0,0.00021917,3]
[379635950,1755351855418,-4040.0,0.00021917,3]
[379635951,1755351855494,-1865.61888188,0.00021917,3]